[Event "41st Jacques-Lemans-Open 2022"]
[Site "St. Veit/Glan"]
[Date "2022.07.10"]
[Round "3.26"]
[White "Bauer, Thomas"]
[Black "Hengl, Philip"]
[Result "1-0"]
[ECO "B47"]
[WhiteElo "2228"]
[BlackElo "1968"]
[Annotator "RC"]
[PlyCount "83"]
[EventDate "2022.07.09"]
[EventType "swiss"]
[EventCountry "AUT"]
[SourceTitle "playchess.com"]
[Source "ChessBase"]
[SourceQuality "1"]
[TimeControl "40/5400+30:1800+30"]

1. e4 {[%emt 0:00:02]} c5 {[%emt 0:00:07]} 2. Nc3 {[%emt 0:00:52]} e6 {[%emt 0:00:09]} 3. Nf3 {[%emt 0:00:07]} Nc6 {[%emt 0:00:10]} 4. d4 {[%emt 0:00:36]} cxd4 {[%emt 0:00:25]} 5. Nxd4 {[%emt 0:00:02]} Qc7 {[%emt 0:00:12]} 6. Be2 {[%emt 0:01:05]} a6 {[%emt 0:01:56]} 7. O-O {[%emt 0:03:36]} Nf6 {[%emt 0:03:09]} 8. Be3 {[%emt 0:00:49]} b5 {[%emt 0:00:58]} 9. a3 {[%emt 0:00:04]} Be7 {[%emt 0:00:16]} 10. f4 {[%emt 0:01:15]} Bb7 {[%emt 0:06:30]} 11. Nb3 {[%emt 0:07:54]} d6 {[%emt 0:00:36]} 12. Kh1 {[%emt 0:00:10]} O-O {[%emt 0:01:56]} 13. Bf3 {[%emt 0:06:50]} Rac8 {[%emt 0:16:34]} 14. Qe1 {[%emt 0:03:31]} h6 {[%emt 0:16:20]} 15. Qg3 {[%emt 0:05:48]} Kh8 {[%emt 0:05:01]} 16. Qh3 {[%emt 0:03:01]} Nh7 {[%emt 0:04:09]} 17. Rf2 {[%emt 0:06:43]} Bf6 {[%emt 0:01:43]} 18. Rg1 {[%emt 0:03:47]} Ne7 {[%emt 0:06:46]} 19. Nd1 {[%emt 0:09:21]} e5 {[%emt 0:01:47]} 20. fxe5 {[%emt 0:09:01]} Bxe5 {[%emt 0:01:50]} 21. Rd2 {[%emt 0:01:26]} Rcd8 {[%emt 0:03:12]} 22. Nc3 {[%emt 0:04:47]} Bc8 {[%emt 0:06:06]} 23. Qh4 {[%emt 0:01:33]} f5 {[%emt 0:01:35]} 24. Qf2 {[%emt 0:03:57]} Rde8 {[%emt 0:02:09]} 25. Bb6 {[%emt 0:06:00]} Qb8 {[%emt 0:01:08]} 26. Ba7 {[%emt 0:00:49]} Qc7 {[%emt 0:00:07]} 27. Bb6 {[%emt 0:04:59]} Qb8 {[%emt 0:00:07]} 28. Bd4 {[%emt 0:01:06]} Ng5 {[%emt 0:03:57]} 29. Bxe5 {[%emt 0:03:59]} dxe5 {[%emt 0:00:15]} 30. Qc5 {[%emt 0:01:40]} Bb7 {[%emt 0:04:40]} 31. Rd7 {[%emt 0:02:34]} fxe4 {[%emt 0:01:20]} 32. Bh5 {[%emt 0:02:14]} g6 {[%emt 0:07:05]} 33. Qb6 {[%emt 0:01:21]} gxh5 {[%emt 0:01:29]} 34. Rxb7 {[%emt 0:00:38]} Qc8 {[%emt 0:01:10]} 35. Qxh6+ {[%emt 0:01:53]} Nh7 {[%emt 0:00:08]} 36. Na5 {[%emt 0:01:51]} Qf5 {[%emt 0:02:18]} 37. Nd5 {[%emt 0:02:03]} Rf7 {[%emt 0:00:52]} 38. Nxe7 {[%emt 0:01:12]} Rfxe7 {[%emt 0:00:15]} 39. Qxa6 {[%emt 0:00:42]} Rxb7 {[%emt 0:00:57]} 40. Nxb7 {[%emt 0:00:17]} Ng5 {[%emt 0:00:32]} 41. Qh6+ {[%emt 0:01:35]} Nh7 {[%emt 0:00:00]} 42. Nd6 {[%emt 0:00:51]} 1-0

[Event "41st Jacques-Lemans-Open 2022"]
[Site "St. Veit/Glan"]
[Date "2022.07.10"]
[Round "3.27"]
[White "Tonel, Giulia"]
[Black "Schein, Karl-Heinz"]
[Result "1/2-1/2"]
[ECO "B14"]
[WhiteElo "1969"]
[BlackElo "2167"]
[Annotator "RC"]
[PlyCount "50"]
[EventDate "2022.07.09"]
[EventType "swiss"]
[EventCountry "AUT"]
[SourceTitle "playchess.com"]
[Source "ChessBase"]
[SourceQuality "1"]
[TimeControl "40/5400+30:1800+30"]

1. e4 {[%emt 0:00:11]} c6 {[%emt 0:00:13]} 2. d4 {[%emt 0:00:20]} d5 {[%emt 0:00:07]} 3. exd5 {[%emt 0:00:53]} cxd5 {[%emt 0:00:12]} 4. c4 {[%emt 0:01:49]} Nf6 {[%emt 0:00:46]} 5. Nc3 {[%emt 0:00:29]} e6 {[%emt 0:00:31]} 6. Nf3 {[%emt 0:01:04]} Be7 {[%emt 0:01:44]} 7. Bd3 {[%emt 0:03:01]} O-O {[%emt 0:01:21]} 8. O-O {[%emt 0:01:04]} Nc6 {[%emt 0:01:17]} 9. a3 {[%emt 0:01:52]} b6 {[%emt 0:02:39]} 10. b4 {[%emt 0:12:02]} dxc4 {[%emt 0:02:20]} 11. Bxc4 {[%emt 0:00:13]} Bb7 {[%emt 0:04:26]} 12. Bb2 {[%emt 0:03:24]} Nd5 {[%emt 0:05:15]} 13. Nxd5 {[%emt 0:11:37]} exd5 {[%emt 0:00:13]} 14. Bd3 {[%emt 0:00:07]} Bd6 {[%emt 0:08:00]} 15. Rc1 {[%emt 0:04:59]} Ne7 {[%emt 0:03:09]} 16. Ne5 {[%emt 0:03:57]} g6 {[%emt 0:07:42]} 17. Qg4 {[%emt 0:02:50]} Bc8 {[%emt 0:03:15]} 18. Qf3 {[%emt 0:04:28]} Be6 {[%emt 0:04:51]} 19. Ba6 {[%emt 0:01:55]} Rb8 {[%emt 0:07:19]} 20. Bb5 {[%emt 0:03:24]} Bxe5 {[%emt 0:04:10]} 21. dxe5 {[%emt 0:00:10]} Rc8 {[%emt 0:02:12]} 22. h3 {[%emt 0:02:01]} Nf5 {[%emt 0:02:27]} 23. Bc6 {[%emt 0:05:24]} Nh4 {[%emt 0:07:52]} 24. Qe3 {[%emt 0:04:30]} Nf5 {[%emt 0:00:40]} 25. Qf3 {[%emt 0:01:09]} Qg5 {[%emt 0:03:17]} 1/2-1/2

[Event "41st Jacques-Lemans-Open 2022"]
[Site "St. Veit/Glan"]
[Date "2022.07.10"]
[Round "3.28"]
[White "Kienboeck, Benjamin"]
[Black "Elpons, Walter"]
[Result "0-1"]
[ECO "B94"]
[WhiteElo "2151"]
[BlackElo "1952"]
[Annotator "RC"]
[PlyCount "88"]
[EventDate "2022.07.09"]
[EventType "swiss"]
[EventCountry "AUT"]
[SourceTitle "playchess.com"]
[Source "ChessBase"]
[SourceQuality "1"]
[TimeControl "40/5400+30:1800+30"]

1. e4 {[%emt 0:00:03]} c5 {[%emt 0:00:05]} 2. Nf3 {[%emt 0:00:10]} d6 {[%emt 0:00:07]} 3. d4 {[%emt 0:00:06]} cxd4 {[%emt 0:00:07]} 4. Nxd4 {[%emt 0:00:07]} Nf6 {[%emt 0:00:05]} 5. Nc3 {[%emt 0:00:07]} a6 {[%emt 0:00:36]} 6. Bg5 {[%emt 0:01:51]} e5 {[%emt 0:01:30]} 7. Nb3 {[%emt 0:05:38]} Be7 {[%emt 0:00:28]} 8. Qd2 {[%emt 0:01:27]} Be6 {[%emt 0:02:33]} 9. O-O-O {[%emt 0:01:05]} Nbd7 {[%emt 0:01:14]} 10. f3 {[%emt 0:08:59]} Rc8 {[%emt 0:06:10]} 11. Kb1 {[%emt 0:01:04]} O-O {[%emt 0:03:09]} 12. g4 {[%emt 0:02:17]} b5 {[%emt 0:10:09]} 13. Be3 {[%emt 0:00:50]} Nb6 {[%emt 0:05:56]} 14. Qf2 {[%emt 0:05:48]} Nc4 {[%emt 0:06:37]} 15. Bxc4 {[%emt 0:00:51]} bxc4 {[%emt 0:05:46]} 16. Nc1 {[%emt 0:00:29]} Rb8 {[%emt 0:00:51]} 17. g5 {[%emt 0:02:24]} Nh5 {[%emt 0:01:09]} 18. Qd2 {[%emt 0:02:24]} Qc7 {[%emt 0:04:59]} 19. Nd5 {[%emt 0:02:11]} Bxd5 {[%emt 0:00:54]} 20. Qxd5 {[%emt 0:00:13]} Rb5 {[%emt 0:04:09]} 21. Qd2 {[%emt 0:12:36]} c3 {[%emt 0:00:41]} 22. Qd3 {[%emt 0:00:14]} Rxb2+ 23. Ka1 Qa5 {[%emt 0:06:23]} 24. Qd5 {[%emt 0:03:45]} Rfb8 {[%emt 0:03:31]} 25. Nd3 {[%emt 0:02:01]} Qxd5 {[%emt 0:13:25]} 26. exd5 {[%emt 0:00:12]} Rxc2 {[%emt 0:00:58]} 27. Rb1 {[%emt 0:02:39]} Re8 {[%emt 0:04:00]} 28. Nb4 {[%emt 0:01:54]} Re2 {[%emt 0:00:53]} 29. Nc6 {[%emt 0:00:12]} Rxe3 {[%emt 0:03:39]} 30. Nxe7+ {[%emt 0:00:04]} Kf8 {[%emt 0:00:08]} 31. Nf5 {[%emt 0:00:19]} Rxf3 {[%emt 0:00:23]} 32. Nxd6 {[%emt 0:00:09]} Rd8 {[%emt 0:00:24]} 33. Rb6 {[%emt 0:01:06]} Rd3 {[%emt 0:02:00]} 34. Ne4 {[%emt 0:07:12]} R8xd5 {[%emt 0:03:31]} 35. Kb1 {[%emt 0:02:30]} Re3 {[%emt 0:04:38]} 36. Rb4 {[%emt 0:02:18]} Nf4 {[%emt 0:02:33]} 37. Rc1 {[%emt 0:03:52]} Ne2 {[%emt 0:01:20]} 38. Rf1 {[%emt 0:01:15]} c2+ {[%emt 0:01:08]} 39. Kxc2 {[%emt 0:00:42]} Nd4+ {[%emt 0:00:33]} 40. Kd2 {[%emt 0:00:11]} Rxe4 {[%emt 0:00:53]} 41. Rb8+ {[%emt 0:30:07]} Ke7 {[%emt 0:30:42]} 42. Rb7+ {[%emt 0:00:07]} Ke6 {[%emt 0:00:00]} 43. Rfxf7 {[%emt 0:00:00]} Nf5+ {[%emt 0:00:00]} 44. Kc3 {[%emt 0:00:00]} Re3+ {[%emt 0:00:00]} 0-1

[Event "41st Jacques-Lemans-Open 2022"]
[Site "St. Veit/Glan"]
[Date "2022.07.10"]
[Round "3.29"]
[White "Enne, Harald"]
[Black "Hoffmann, Sebastian"]
[Result "1/2-1/2"]
[ECO "D18"]
[WhiteElo "1919"]
[BlackElo "2148"]
[Annotator "RC"]
[PlyCount "106"]
[EventDate "2022.07.09"]
[EventType "swiss"]
[EventCountry "AUT"]
[SourceTitle "playchess.com"]
[Source "ChessBase"]
[SourceQuality "1"]
[TimeControl "40/5400+30:1800+30"]

1. d4 {[%emt 0:00:05]} d5 {[%emt 0:00:07]} 2. c4 {[%emt 0:00:06]} c6 {[%emt 0:00:05]} 3. Nc3 {[%emt 0:00:14]} Nf6 {[%emt 0:00:04]} 4. Nf3 {[%emt 0:00:13]} dxc4 {[%emt 0:00:06]} 5. a4 {[%emt 0:00:51]} Bf5 {[%emt 0:00:10]} 6. e3 {[%emt 0:00:56]} e6 {[%emt 0:00:06]} 7. Bxc4 {[%emt 0:00:13]} Bb4 {[%emt 0:00:05]} 8. O-O {[%emt 0:00:17]} Nbd7 {[%emt 0:00:13]} 9. Qb3 {[%emt 0:14:51]} a5 {[%emt 0:09:53]} 10. Na2 {[%emt 0:01:12]} Bd6 {[%emt 0:04:18]} 11. Re1 {[%emt 0:09:28]} Ne4 {[%emt 0:04:20]} 12. Nc3 {[%emt 0:02:20]} Qc7 {[%emt 0:17:57]} 13. Nxe4 {[%emt 0:26:43]} Bxe4 {[%emt 0:00:01]} 14. Bxe6 {[%emt 0:19:41]} Nf6 {[%emt 0:00:27]} 15. Bc4 {[%emt 0:06:35]} Bxf3 {[%emt 0:01:24]} 16. gxf3 {[%emt 0:00:02]} Bxh2+ {[%emt 0:00:28]} 17. Kg2 {[%emt 0:00:17]} Bd6 {[%emt 0:00:22]} 18. e4 {[%emt 0:00:44]} Bb4 {[%emt 0:01:01]} 19. Rh1 {[%emt 0:01:30]} Rd8 {[%emt 0:03:17]} 20. Be3 {[%emt 0:00:53]} g5 {[%emt 0:15:04]} 21. Rh6 {[%emt 0:03:06]} Qe7 {[%emt 0:06:25]} 22. Rah1 {[%emt 0:02:33]} g4 {[%emt 0:04:37]} 23. e5 {[%emt 0:03:43]} gxf3+ {[%emt 0:01:34]} 24. Kxf3 {[%emt 0:00:02]} Nd5 {[%emt 0:01:10]} 25. Rxh7 {[%emt 0:01:31]} Rf8 {[%emt 0:01:22]} 26. Bh6 {[%emt 0:00:56]} Rg8 {[%emt 0:04:28]} 27. Qd3 {[%emt 0:01:50]} Qe6 {[%emt 0:07:07]} 28. Bg7 {[%emt 0:02:12]} Bf8 {[%emt 0:02:16]} 29. R1h6 {[%emt 0:00:52]} Qd7 {[%emt 0:00:53]} 30. e6 {[%emt 0:00:58]} fxe6 {[%emt 0:07:04]} 31. Qg6+ {[%emt 0:00:17]} Qf7+ {[%emt 0:00:01]} 32. Qxf7+ {[%emt 0:00:22]} Kxf7 {[%emt 0:00:01]} 33. Be5+ {[%emt 0:00:48]} Bg7 {[%emt 0:01:59]} 34. Bxg7 {[%emt 0:00:32]} Rxg7 {[%emt 0:00:34]} 35. Rxg7+ {[%emt 0:00:22]} Kxg7 {[%emt 0:00:01]} 36. Rxe6 {[%emt 0:00:12]} Rf8+ {[%emt 0:00:05]} 37. Kg3 {[%emt 0:00:19]} Rf5 {[%emt 0:03:25]} 38. Bxd5 {[%emt 0:00:56]} Rxd5 {[%emt 0:00:01]} 39. Re4 {[%emt 0:00:29]} b5 {[%emt 0:02:30]} 40. b3 {[%emt 0:00:25]} Kf6 {[%emt 0:01:22]} 41. Kf3 {[%emt 0:30:28]} Rh5 {[%emt 0:31:38]} 42. Ke2 {[%emt 0:00:00]} Rh3 {[%emt 0:00:00]} 43. axb5 {[%emt 0:00:00]} cxb5 {[%emt 0:00:00]} 44. f3 {[%emt 0:00:00]} a4 {[%emt 0:00:00]} 45. bxa4 {[%emt 0:00:00]} bxa4 {[%emt 0:00:00]} 46. d5 {[%emt 0:00:00]} a3 {[%emt 0:00:00]} 47. d6 {[%emt 0:00:00]} Rh8 {[%emt 0:00:00]} 48. d7 {[%emt 0:00:00]} Rd8 {[%emt 0:00:00]} 49. Ra4 {[%emt 0:00:00]} Rxd7 {[%emt 0:00:00]} 50. Rxa3 {[%emt 0:00:00]} Rb7 {[%emt 0:00:00]} 51. Ra5 {[%emt 0:00:00]} Re7+ {[%emt 0:00:00]} 52. Kd3 {[%emt 0:00:00]} Re5 {[%emt 0:00:00]} 53. Rxe5 {[%emt 0:00:00]} Kxe5 {[%emt 0:00:00]} 1/2-1/2

[Event "41st Jacques-Lemans-Open 2022"]
[Site "St. Veit/Glan"]
[Date "2022.07.10"]
[Round "3.30"]
[White "Leitner, Gerald"]
[Black "Hafner, Robert"]
[Result "1/2-1/2"]
[ECO "A12"]
[WhiteElo "2145"]
[BlackElo "1933"]
[Annotator "RC"]
[PlyCount "92"]
[EventDate "2022.07.09"]
[EventType "swiss"]
[EventCountry "AUT"]
[SourceTitle "playchess.com"]
[Source "ChessBase"]
[SourceQuality "1"]
[TimeControl "40/5400+30:1800+30"]

1. c4 {[%emt 0:00:09]} c6 {[%emt 0:00:08]} 2. Nf3 {[%emt 0:00:01]} d5 {[%emt 0:00:06]} 3. b3 {[%emt 0:00:04]} Nf6 {[%emt 0:00:16]} 4. Bb2 {[%emt 0:00:02]} Bf5 {[%emt 0:00:25]} 5. g3 {[%emt 0:00:07]} e6 {[%emt 0:00:18]} 6. Bg2 {[%emt 0:00:01]} Be7 {[%emt 0:00:29]} 7. O-O {[%emt 0:00:07]} O-O {[%emt 0:02:22]} 8. d3 {[%emt 0:00:01]} h6 {[%emt 0:00:08]} 9. Nbd2 {[%emt 0:00:02]} Nbd7 {[%emt 0:00:35]} 10. a3 {[%emt 0:00:13]} a5 {[%emt 0:00:16]} 11. Rc1 {[%emt 0:00:24]} Re8 {[%emt 0:05:04]} 12. Re1 {[%emt 0:01:43]} Bh7 {[%emt 0:02:47]} 13. h3 {[%emt 0:07:11]} Bf8 {[%emt 0:00:45]} 14. cxd5 {[%emt 0:12:21]} cxd5 {[%emt 0:00:09]} 15. Bf1 {[%emt 0:15:59]} Rc8 {[%emt 0:00:27]} 16. Rxc8 {[%emt 0:00:24]} Qxc8 {[%emt 0:00:05]} 17. Qa1 {[%emt 0:00:20]} Qa8 {[%emt 0:00:50]} 18. Rc1 {[%emt 0:16:35]} Rc8 {[%emt 0:00:08]} 19. Nd4 {[%emt 0:04:19]} Ne8 {[%emt 0:15:24]} 20. Nb5 {[%emt 0:01:32]} b6 {[%emt 0:05:42]} 21. Bd4 {[%emt 0:16:45]} Qa6 {[%emt 0:13:25]} 22. Rxc8 {[%emt 0:06:22]} Qxc8 {[%emt 0:00:06]} 23. Qb2 {[%emt 0:01:14]} Qc6 {[%emt 0:00:53]} 24. a4 {[%emt 0:01:28]} Nc7 {[%emt 0:02:58]} 25. Nxc7 {[%emt 0:01:23]} Qxc7 {[%emt 0:00:06]} 26. Nf3 {[%emt 0:02:31]} Bg6 {[%emt 0:07:51]} 27. Ne5 {[%emt 0:00:55]} Nxe5 {[%emt 0:00:13]} 28. Bxe5 {[%emt 0:00:01]} Qc5 {[%emt 0:11:23]} 29. Bd4 {[%emt 0:00:12]} Qc7 {[%emt 0:00:32]} 30. Bg2 {[%emt 0:01:07]} f6 {[%emt 0:03:18]} 31. Bc3 {[%emt 0:04:57]} Bf7 {[%emt 0:00:48]} 32. e4 {[%emt 0:02:47]} dxe4 {[%emt 0:00:37]} 33. Bxe4 {[%emt 0:03:01]} e5 {[%emt 0:05:06]} 34. d4 {[%emt 0:00:29]} exd4 {[%emt 0:00:28]} 35. Bxd4 {[%emt 0:00:01]} Bc5 {[%emt 0:13:11]} 36. Qc3 Qd6 37. Bxc5 {[%emt 0:01:49]} Qxc5 {[%emt 0:00:30]} 38. Qd3 {[%emt 0:00:46]} Qc7 {[%emt 0:02:04]} 39. Kg2 {[%emt 0:01:36]} Kf8 {[%emt 0:01:21]} 40. Bf5 {[%emt 0:00:55]} Qc6+ {[%emt 0:03:54]} 41. Be4 {[%emt 0:30:04]} Qc7 {[%emt 0:30:08]} 42. Kf3 {[%emt 0:00:00]} Ke7 {[%emt 0:00:00]} 43. Bd5 {[%emt 0:00:00]} Qd6 {[%emt 0:00:00]} 44. Qe4+ {[%emt 0:00:00]} Kf8 {[%emt 0:00:00]} 45. Bc4 {[%emt 0:00:00]} Qd1+ {[%emt 0:00:00]} 46. Kg2 {[%emt 0:00:00]} Bxc4 {[%emt 0:00:00]} 1/2-1/2

[Event "41st Jacques-Lemans-Open 2022"]
[Site "St. Veit/Glan"]
[Date "2022.07.10"]
[Round "3.31"]
[White "Ganauser, Eduard"]
[Black "Wiedner, Robert"]
[Result "0-1"]
[ECO "B10"]
[WhiteElo "1914"]
[BlackElo "2133"]
[Annotator "RC"]
[PlyCount "154"]
[EventDate "2022.07.09"]
[EventType "swiss"]
[EventCountry "AUT"]
[SourceTitle "playchess.com"]
[Source "ChessBase"]
[SourceQuality "1"]
[TimeControl "40/5400+30:1800+30"]

1. c4 {[%emt 0:00:10]} c6 {[%emt 0:00:41]} 2. e4 {[%emt 0:01:21]} d5 {[%emt 0:00:21]} 3. exd5 {[%emt 0:00:22]} cxd5 {[%emt 0:00:08]} 4. d4 {[%emt 0:00:19]} Nf6 {[%emt 0:00:35]} 5. Nf3 {[%emt 0:01:05]} Nc6 {[%emt 0:00:09]} 6. cxd5 {[%emt 0:00:50]} Nxd5 {[%emt 0:00:09]} 7. Nc3 {[%emt 0:00:07]} Bg4 {[%emt 0:02:40]} 8. Bc4 {[%emt 0:03:38]} e6 {[%emt 0:00:10]} 9. Nxd5 {[%emt 0:05:34]} exd5 {[%emt 0:00:10]} 10. Be2 {[%emt 0:00:28]} Be7 {[%emt 0:00:38]} 11. O-O {[%emt 0:02:02]} O-O {[%emt 0:00:08]} 12. Be3 {[%emt 0:04:42]} Bf6 {[%emt 0:00:13]} 13. h3 {[%emt 0:00:56]} Bf5 {[%emt 0:00:52]} 14. Qb3 {[%emt 0:07:46]} Na5 {[%emt 0:00:16]} 15. Qa4 {[%emt 0:00:28]} a6 {[%emt 0:00:21]} 16. Bd2 {[%emt 0:01:33]} Nc6 {[%emt 0:00:22]} 17. Bc3 {[%emt 0:02:48]} Re8 {[%emt 0:00:15]} 18. Rfe1 {[%emt 0:03:40]} Qd7 {[%emt 0:00:46]} 19. Qd1 {[%emt 0:04:31]} Re6 {[%emt 0:05:45]} 20. Qd2 {[%emt 0:00:32]} h6 {[%emt 0:00:52]} 21. a4 {[%emt 0:06:22]} Rae8 {[%emt 0:00:19]} 22. b4 {[%emt 0:00:36]} Be4 {[%emt 0:01:36]} 23. Nh2 {[%emt 0:03:23]} Bg5 {[%emt 0:00:33]} 24. Qb2 {[%emt 0:02:59]} Rg6 {[%emt 0:05:11]} 25. Bg4 {[%emt 0:04:04]} Qd8 {[%emt 0:03:10]} 26. f3 {[%emt 0:06:06]} Bd3 {[%emt 0:00:10]} 27. Rxe8+ {[%emt 0:00:04]} Qxe8 {[%emt 0:00:11]} 28. Re1 {[%emt 0:00:12]} Qd8 {[%emt 0:01:37]} 29. Bh5 {[%emt 0:01:54]} Rd6 {[%emt 0:01:44]} 30. Qf2 {[%emt 0:03:42]} b5 {[%emt 0:07:06]} 31. axb5 {[%emt 0:00:23]} axb5 {[%emt 0:00:21]} 32. f4 {[%emt 0:00:12]} Bh4 {[%emt 0:00:11]} 33. g3 {[%emt 0:00:09]} Bf6 {[%emt 0:00:17]} 34. Be2 {[%emt 0:05:27]} Bxe2 {[%emt 0:00:30]} 35. Rxe2 {[%emt 0:00:09]} Qd7 {[%emt 0:00:12]} 36. Kg2 {[%emt 0:01:54]} Re6 {[%emt 0:01:22]} 37. Nf3 {[%emt 0:00:18]} Be7 {[%emt 0:02:32]} 38. Ne5 {[%emt 0:03:02]} Qb7 {[%emt 0:01:43]} 39. Nxc6 {[%emt 0:01:51]} Qxc6 {[%emt 0:00:38]} 40. Rxe6 {[%emt 0:00:38]} Qxe6 {[%emt 0:00:19]} 41. Qe1 {[%emt 0:30:13]} Qxe1 {[%emt 0:30:22]} 42. Bxe1 {[%emt 0:00:01]} Kh7 {[%emt 0:01:17]} 43. Kf3 {[%emt 0:00:32]} Kg6 {[%emt 0:00:25]} 44. g4 {[%emt 0:01:14]} f5 {[%emt 0:00:10]} 45. Kg3 {[%emt 0:00:45]} fxg4 {[%emt 0:00:14]} 46. hxg4 {[%emt 0:00:27]} h5 {[%emt 0:00:22]} 47. gxh5+ {[%emt 0:00:09]} Kxh5 {[%emt 0:00:09]} 48. Kf3 {[%emt 0:00:15]} Bd6 {[%emt 0:00:55]} 49. Bd2 {[%emt 0:00:48]} Kh4 {[%emt 0:00:40]} 50. Be1+ {[%emt 0:01:18]} Kh3 {[%emt 0:00:25]} 51. Bd2 {[%emt 0:01:08]} g6 {[%emt 0:00:46]} 52. Be1 {[%emt 0:00:47]} Be7 {[%emt 0:00:14]} 53. Bd2 {[%emt 0:00:43]} Bh4 {[%emt 0:00:18]} 54. Bc3 {[%emt 0:01:24]} Bf6 {[%emt 0:00:17]} 55. Bb2 {[%emt 0:00:32]} Kh2 {[%emt 0:00:33]} 56. Kg4 {[%emt 0:01:56]} Kg2 {[%emt 0:00:07]} 57. f5 {[%emt 0:00:08]} g5 {[%emt 0:00:11]} 58. Bc1 {[%emt 0:00:15]} Bxd4 {[%emt 0:00:25]} 59. Bxg5 {[%emt 0:00:02]} Bc3 {[%emt 0:00:50]} 60. Be7 {[%emt 0:00:17]} d4 {[%emt 0:00:29]} 61. Bf6 {[%emt 0:06:04]} Bb2 {[%emt 0:04:07]} 62. Bg5 {[%emt 0:04:47]} d3 {[%emt 0:00:14]} 63. f6 {[%emt 0:01:27]} Bxf6 {[%emt 0:00:09]} 64. Bh6 {[%emt 0:00:06]} Bc3 {[%emt 0:00:12]} 65. Kf5 {[%emt 0:00:07]} Bxb4 {[%emt 0:00:14]} 66. Ke4 {[%emt 0:00:24]} d2 {[%emt 0:00:10]} 67. Bxd2 {[%emt 0:00:08]} Bxd2 {[%emt 0:00:07]} 68. Kd3 {[%emt 0:00:06]} Be1 {[%emt 0:00:11]} 69. Kc2 {[%emt 0:00:08]} Kf3 {[%emt 0:00:17]} 70. Kb3 {[%emt 0:00:11]} Ke3 {[%emt 0:00:12]} 71. Kb2 {[%emt 0:00:06]} Kd3 {[%emt 0:00:20]} 72. Kb3 {[%emt 0:00:33]} Bc3 {[%emt 0:00:11]} 73. Ka3 {[%emt 0:00:14]} Kc4 {[%emt 0:00:34]} 74. Ka2 {[%emt 0:00:08]} Kb4 {[%emt 0:00:08]} 75. Kb1 {[%emt 0:00:10]} Kb3 {[%emt 0:00:09]} 76. Kc1 {[%emt 0:00:07]} Ka2 {[%emt 0:00:08]} 77. Kc2 {[%emt 0:00:01]} Bf6 {[%emt 0:00:09]} 0-1

[Event "41st Jacques-Lemans-Open 2022"]
[Site "St. Veit/Glan"]
[Date "2022.07.10"]
[Round "3.32"]
[White "Zoernpfenning, Siegfried"]
[Black "Milde, Lars"]
[Result "1-0"]
[ECO "A45"]
[WhiteElo "2114"]
[BlackElo "1892"]
[Annotator "RC"]
[PlyCount "95"]
[EventDate "2022.07.09"]
[EventType "swiss"]
[EventCountry "AUT"]
[SourceTitle "playchess.com"]
[Source "ChessBase"]
[SourceQuality "1"]
[TimeControl "40/5400+30:1800+30"]

1. d4 {[%emt 0:00:04]} Nf6 {[%emt 0:00:09]} 2. Bf4 {[%emt 0:00:06]} g6 {[%emt 0:00:35]} 3. Nc3 {[%emt 0:00:29]} d6 {[%emt 0:02:00]} 4. Qd2 {[%emt 0:02:56]} h6 {[%emt 0:03:23]} 5. e4 {[%emt 0:02:16]} Bg7 {[%emt 0:00:42]} 6. O-O-O {[%emt 0:00:30]} c6 {[%emt 0:03:30]} 7. Be2 {[%emt 0:06:35]} b5 {[%emt 0:03:07]} 8. Bf3 {[%emt 0:02:56]} Nfd7 {[%emt 0:06:23]} 9. e5 {[%emt 0:19:11]} d5 {[%emt 0:12:27]} 10. Kb1 {[%emt 0:07:02]} e6 {[%emt 0:00:44]} 11. h4 {[%emt 0:00:27]} Nb6 {[%emt 0:00:36]} 12. Re1 {[%emt 0:02:48]} b4 {[%emt 0:03:45]} 13. Nd1 {[%emt 0:00:46]} a5 {[%emt 0:00:13]} 14. Ne3 {[%emt 0:01:03]} Na6 {[%emt 0:04:53]} 15. Be2 {[%emt 0:01:07]} Nc7 {[%emt 0:00:43]} 16. Nf3 {[%emt 0:01:39]} Ba6 {[%emt 0:01:47]} 17. Ng4 {[%emt 0:03:13]} Bxe2 {[%emt 0:02:41]} 18. Qxe2 {[%emt 0:03:26]} Nb5 {[%emt 0:01:39]} 19. h5 {[%emt 0:03:17]} g5 {[%emt 0:06:03]} 20. Bd2 {[%emt 0:00:47]} Na4 {[%emt 0:03:43]} 21. Qd3 {[%emt 0:01:07]} Qb6 {[%emt 0:05:28]} 22. Ka1 {[%emt 0:01:08]} Qb7 {[%emt 0:08:32]} 23. Rb1 {[%emt 0:01:19]} c5 {[%emt 0:02:13]} 24. c4 {[%emt 0:01:44]} dxc4 {[%emt 0:03:37]} 25. Qxc4 {[%emt 0:00:14]} cxd4 {[%emt 0:01:43]} 26. Nxd4 {[%emt 0:01:14]} Nxd4 {[%emt 0:00:12]} 27. Qxd4 {[%emt 0:00:10]} Rd8 {[%emt 0:01:33]} 28. Qe3 {[%emt 0:00:37]} Nb6 {[%emt 0:04:28]} 29. Rbc1 {[%emt 0:01:16]} O-O {[%emt 0:01:22]} 30. f3 {[%emt 0:07:14]} Rd5 {[%emt 0:04:53]} 31. f4 {[%emt 0:03:06]} Rfd8 {[%emt 0:01:07]} 32. Rc2 {[%emt 0:01:38]} Rd3 {[%emt 0:01:07]} 33. Qe2 {[%emt 0:00:24]} Qd5 {[%emt 0:01:03]} 34. Bc1 {[%emt 0:03:23]} gxf4 {[%emt 0:02:05]} 35. Bxf4 {[%emt 0:00:29]} b3 {[%emt 0:00:36]} 36. Rcc1 {[%emt 0:05:11]} Qd4 {[%emt 0:02:08]} 37. Bxh6 {[%emt 0:02:16]} Bxh6 {[%emt 0:01:07]} 38. Nxh6+ {[%emt 0:00:10]} Kg7 {[%emt 0:00:09]} 39. Qf1 {[%emt 0:00:59]} Kxh6 {[%emt 0:02:14]} 40. Qf6+ {[%emt 0:00:37]} Kh7 {[%emt 0:00:33]} 41. Qxf7+ {[%emt 0:30:24]} Kh8 {[%emt 0:30:31]} 42. Qf6+ {[%emt 0:03:07]} Kh7 {[%emt 0:04:58]} 43. Qg6+ {[%emt 0:01:28]} Kh8 {[%emt 0:00:06]} 44. Qh6+ {[%emt 0:00:10]} Kg8 {[%emt 0:00:12]} 45. Qxe6+ {[%emt 0:00:49]} Kh8 {[%emt 0:00:13]} 46. axb3 {[%emt 0:03:33]} a4 {[%emt 0:00:00]} 47. Qf6+ {[%emt 0:00:00]} Kg8 {[%emt 0:00:00]} 48. h6 {[%emt 0:00:00]} 1-0